bitfinex-derivatives/quotes_SOLF0:USTF0_20251101
["timestamp","ask_amount","ask_price","bid_price","bid_amount"]
[1762037290716,4.8446,185.86,185.84,2.76]
[1762037293114,2.75,185.92,185.86,2.76]
[1762037293315,2.75,185.92,185.88,2.76]
[1762037302018,7.5929,185.92,185.88,2.76]
[1762037304321,2.67,185.91,185.88,2.76]
[1762037305631,7.5133,185.91,185.88,2.76]
[1762037305833,4.8433,185.91,185.88,2.76]
[1762037306030,7.5133,185.91,185.88,2.76]
[1762037309836,2.67,185.9,185.88,2.76]
[1762037310532,7.5133,185.91,185.88,2.76]
[1762037312040,1.83497829,185.95,185.88,2.76]
[1762037312230,4.50497829,185.95,185.88,2.76]
[1762037312537,2.67,185.94,185.88,2.76]
[1762037312940,4.843,185.92,185.88,2.76]
[1762037313138,2.67,185.94,185.89,4.73692905]
[1762037313344,2.67,185.98,185.91,2.93]
[1762037313541,2.67,185.98,185.93,2.93]
[1762037315043,7.5117,185.97,185.93,2.93]
[1762037317739,4.8417,185.97,185.93,2.93]
[1762037319548,7.7317,185.97,185.93,2.93]
[1762037323446,2.89,185.97,185.89,2.8]
[1762037323650,2.89,185.97,185.91,2.8]
[1762037325941,7.7321,185.95,185.91,2.8]
[1762037326652,2.89,185.94,185.91,2.8]
[1762037328650,2.89,185.94,185.88,2.8]
[1762037328851,2.89,185.94,185.9,2.8]
[1762037329051,2.89,185.94,185.91,7.61967682]
[1762037329252,2.89,185.94,185.91,2.8]
[1762037334356,2.89,185.94,185.92,4.82700044]
[1762037334655,2.89,185.94,185.91,2.8]
[1762037334956,2.89,185.94,185.92,4.82787758]
[1762037335158,2.89,185.94,185.91,2.8]
[1762037335461,2.89,185.94,185.92,7.6283677]
[1762037335756,2.89,185.94,185.92,2.8]
[1762037338457,4.8421,185.95,185.92,2.8]
[1762037339060,4.8421,185.95,185.94,2.8]
[1762037339252,7.7321,185.95,185.94,7.63129559]
[1762037339958,2.89,185.95,185.94,4.83129559]
[1762037341359,2.89,185.99,185.95,2.8]
[1762037341564,2.89,185.99,185.96,7.63129559]
[1762037341855,2.89,185.99,185.97,5.05661366]
[1762037342061,2.89,185.99,185.96,2.8]
[1762037342250,2.89,185.99,185.97,5.05694109]
[1762037342451,2.89,185.99,185.9,2.8]
[1762037342651,2.89,185.99,185.92,2.8]
[1762037342859,2.89,185.99,185.93,9.27487399]
[1762037343062,2.89,185.99,185.94,7.85720551]
[1762037343256,2.89,185.99,185.95,5.05720551]
[1762037343560,2.89,185.99,185.96,5.05720551]
[1762037343755,2.89,185.99,185.97,5.05720551]
[1762037343954,2.89,185.99,185.98,5.05720551]
[1762037346262,2.89,185.99,185.94,2.8]
[1762037346462,2.89,185.99,185.96,2.8]
[1762037346666,2.89,185.99,185.97,5.01685666]
[1762037346853,2.89,185.99,185.98,5.01685666]
[1762037349565,2.89,185.99,185.98,5.24581018]
[1762037350756,2.89,185.99,185.93,2.85]
[1762037350956,2.89,185.99,185.94,5.07726741]
[1762037351163,2.89,185.99,185.93,2.85]
[1762037353362,2.75,185.98,185.93,2.85]
[1762037353561,2.75,185.98,185.93,4.68497829]
[1762037353757,2.75,185.98,185.94,2.85]
[1762037355266,2.75,185.98,185.96,2.85]
[1762037355461,2.75,185.98,185.97,4.94794128]
[1762037359372,2.75,185.98,185.96,2.85]
[1762037362368,7.94696085,185.97,185.9,5.0292846]
[1762037362569,5.06696085,185.96,185.91,4.22899547]
[1762037362873,5.06696085,185.95,185.92,4.22899547]
[1762037363071,5.06696085,185.94,185.93,4.22899547]
[1762037364375,5.06696085,185.94,185.93,4.42899547]
[1762037365480,5.06696085,185.94,185.93,5.50899547]
[1762037367176,5.06696085,185.94,185.93,4.42899547]
[1762037369880,7.94696085,185.94,185.93,4.22899547]
[1762037370182,7.94696085,185.94,185.93,4.42899547]
[1762037370485,5.06696085,185.94,185.93,4.42899547]
[1762037370682,7.94696085,185.94,185.93,4.22899547]
[1762037371381,2.88,185.94,185.93,4.22899547]
[1762037372481,7.23789749,185.94,185.93,0.19327216]
[1762037373486,4.8422,185.95,185.93,6.65996844]
[1762037373682,4.8422,185.95,185.94,11.47655792]
[1762037375478,7.7222,185.95,185.94,10.93270722]
[1762037377488,5.03172069,185.95,185.94,10.93270722]
[1762037383398,5.03172069,185.95,185.94,5.92284558]
[1762037383904,2.68,185.98,185.94,13.74572359]
[1762037384198,2.68,185.98,185.95,5.92284558]
[1762037384506,2.68,185.98,185.96,10.59191436]
[1762037384700,2.68,185.98,185.97,10.59191436]
[1762037400609,2.68,185.98,185.97,5.92284558]
[1762037403311,2.68,185.97,185.92,2.81]
[1762037403608,2.68,185.96,185.93,7.12182399]
[1762037403808,2.68,185.96,185.94,4.31182399]
[1762037404109,2.68,185.96,185.93,2.81]
[1762037404309,2.68,185.96,185.94,4.31138831]
[1762037404511,2.68,185.96,185.94,2.81]
[1762037406906,2.68,185.96,185.91,2.75]
[1762037407101,2.68,185.96,185.92,7.06134158]
[1762037407307,2.68,185.96,185.93,4.31134158]
[1762037407613,2.68,185.96,185.92,2.75]
[1762037407802,2.68,185.96,185.93,4.31118036]
[1762037407997,2.68,185.96,185.92,2.75]
[1762037408303,2.68,185.96,185.93,4.31118036]
[1762037408510,2.68,185.96,185.9,2.75]
[1762037408709,2.68,185.96,185.92,2.75]
[1762037409611,2.68,185.96,185.89,2.75]
[1762037409810,2.68,185.96,185.9,4.31200716]
[1762037410112,2.68,185.96,185.91,4.31200716]
[1762037410308,2.68,185.96,185.87,14.3560725]
[1762037410309,2.68,185.96,185.87,9.34319449]
[1762037410509,2.7,185.93,185.88,4.31310625]
[1762037410705,2.7,185.93,185.87,9.34319449]
[1762037410916,2.7,185.93,185.88,4.31339377]
[1762037411111,2.7,185.93,185.87,9.34319449]
[1762037412105,2.86440579,185.88,185.87,9.34319449]
[1762037412310,2.7,185.87,185.8,2.75]
[1762037412510,2.7,185.83,185.81,4.31409306]
[1762037412810,2.7,185.83,185.8,2.75]
[1762037413114,2.7,185.83,185.81,4.31417931]
[1762037413317,2.7,185.83,185.74,7.76287801]
[1762037413513,2.7,185.83,185.75,4.3092971]
[1762037413717,2.7,185.83,185.76,4.3092971]
[1762037413918,2.7,185.79,185.77,4.3092971]
[1762037414113,2.7,185.79,185.78,4.3092971]
[1762037414319,2.7,185.79,185.74,2.75]
[1762037414521,2.7,185.79,185.75,4.30498275]
[1762037414819,2.7,185.79,185.74,2.75]
[1762037415015,7.5468,185.77,185.75,4.30605535]
[1762037415315,2.7,185.75,185.66,2.75]
[1762037415517,2.7,185.66,185.6,2.75]
[1762037415713,2.7,185.66,185.48,2.86440579]
[1762037415714,2.7,185.62,185.53,2.75]
[1762037416312,5.56440579,185.61,185.53,2.75]
[1762037417214,2.7,185.64,185.53,2.75]
[1762037417418,1.84094388,185.63,185.53,2.75]
[1762037421323,1.84094388,185.6,185.53,2.75]
[1762037422121,1.84094388,185.63,185.53,2.75]
[1762037423422,1.84094388,185.62,185.53,2.75]
[1762037425821,4.53094388,185.65,185.53,2.75]
[1762037427026,1.84094388,185.62,185.53,2.75]
[1762037427228,4.53094388,185.62,185.53,2.75]
[1762037427725,2.69,185.61,185.53,2.75]
[1762037428228,1.84094388,185.59,185.53,2.75]
[1762037428423,4.53094388,185.59,185.53,2.75]
[1762037430120,1.84094388,185.63,185.53,2.75]
[1762037430625,2.69,185.62,185.53,2.75]
[1762037430929,1.84094388,185.6,185.53,2.75]
[1762037431129,2.69,185.62,185.53,2.75]
[1762037431332,1.84094388,185.65,185.53,2.75]
[1762037431723,2.69,185.66,185.53,2.75]
[1762037432030,1.84094388,185.65,185.53,2.75]
[1762037432229,1.84094388,185.65,185.55,2.8]
[1762037434333,7.5397,185.66,185.55,2.8]
[1762037434535,1.84094388,185.65,185.55,2.8]
[1762037434834,1.84094388,185.65,185.57,2.8]
[1762037443244,1.84094388,185.68,185.59,2.67]
[1762037444943,1.84094388,185.68,185.6,4.8512]
[1762037445143,1.84094388,185.68,185.61,2.67]
[1762037449240,2.68,185.67,185.61,2.67]
[1762037449541,4.52094388,185.68,185.61,2.67]
[1762037450443,9.37024388,185.68,185.61,2.67]
[1762037451144,7.5293,185.68,185.61,2.67]
[1762037451344,9.37024388,185.68,185.61,2.67]
[1762037453750,2.68,185.67,185.61,2.67]
[1762037456442,6.69024388,185.68,185.61,2.67]
[1762037460248,2.68,185.7,185.62,2.67]
[1762037460440,4.52094388,185.7,185.62,2.67]
[1762037461248,2.68,185.69,185.63,2.67]
[1762037462956,2.68,185.73,185.64,2.67]
[1762037463144,1.84094388,185.71,185.64,2.67]
[1762037463452,1.84094388,185.73,185.64,2.67]
[1762037464556,2.68,185.76,185.64,2.67]
[1762037464852,1.84094388,185.72,185.64,2.67]
[1762037465053,1.84094388,185.72,185.67,2.67]
[1762037467856,4.73094388,185.72,185.67,2.67]
[1762037468058,25.44,185.83,185.6,2.87]
[1762037468059,4.73094388,185.69,185.6,2.87]
[1762037468956,4.73094388,185.69,185.63,2.87]
[1762037469459,1.84094388,185.69,185.63,2.87]
[1762037470961,1.84094388,185.69,185.63,7.7202]
[1762037471257,1.84094388,185.69,185.64,2.87]
[1762037474172,1.84094388,185.69,185.65,2.87]
[1762037475273,1.84094388,185.69,185.64,4.8499]
[1762037475274,1.84094388,185.72,185.66,2.87]
[1762037476570,1.84094388,185.72,185.68,2.87]
[1762037477272,2.89,185.74,185.68,2.87]
[1762037482579,2.7,185.8,185.7,2.94]
[1762037483477,2.7,185.78,185.72,2.94]
[1762037489872,2.7,185.77,185.72,2.94]
[1762037490074,2.7,185.77,185.69,2.94]
[1762037491284,2.7,185.76,185.69,2.94]
[1762037493081,7.5472,185.76,185.69,2.94]
[1762037493285,2.7,185.75,185.67,2.94]
[1762037494278,2.87253647,185.76,185.67,2.94]
[1762037494279,2.87253647,185.73,185.67,2.94]
[1762037494483,2.7,185.72,185.67,2.94]
[1762037494681,2.87253647,185.76,185.67,2.94]
[1762037494682,2.7,185.75,185.67,2.94]
[1762037494872,10.41923647,185.78,185.7,2.94]
[1762037495385,2.7,185.77,185.7,2.94]
[1762037501997,2.95,185.76,185.7,2.94]
[1762037504992,2.95,185.75,185.67,2.89]
[1762037505990,2.95,185.74,185.67,2.89]
[1762037506188,2.95,185.74,185.68,2.89]
[1762037506384,2.87253647,185.79,185.68,2.89]
[1762037506385,2.95,185.77,185.68,2.89]
[1762037506988,7.7969,185.77,185.68,7.7389]
[1762037507292,2.95,185.76,185.69,2.89]
[1762037520703,2.95,185.76,185.7,2.89]
[1762037521504,2.95,185.82,185.71,2.89]
[1762037521709,2.95,185.82,185.74,2.89]
[1762037523003,2.95,185.82,185.74,7.7373]
[1762037523208,2.95,185.82,185.75,2.89]
[1762037527810,2.85,185.85,185.77,2.86]
[1762037531408,2.85,185.85,185.78,4.8465]
[1762037531711,2.85,185.85,185.79,2.86]
[1762037540716,2.85,185.85,185.8,2.86]
[1762037546320,4.685538,185.85,185.8,2.86]
[1762037548022,2.88,185.84,185.8,2.86]
[1762037550920,7.7237,185.89,185.81,2.81]
[1762037551125,16.16,186.01,185.81,2.81]
[1762037551126,1.835538,185.88,185.81,2.81]
[1762037552026,1.835538,185.88,185.84,2.81]
[1762037553630,4.715538,185.88,185.84,2.81]
[1762037553928,2.88,185.87,185.84,2.81]
[1762037554228,1.835538,185.88,185.84,2.81]
[1762037555929,4.715538,185.88,185.84,2.81]
[1762037558529,4.715538,185.88,185.85,2.84]
[1762037558833,4.765538,185.88,185.85,2.84]
[1762037562533,2.93,185.87,185.84,4.8447]
[1762037562933,2.93,185.87,185.84,7.6847]
[1762037567941,2.93,185.87,185.82,4.8454]
[1762037568241,2.93,185.87,185.83,2.84]
[1762037576843,2.93,185.87,185.8,70.38]
[1762037577542,2.93,185.87,185.8,73.22]
[1762037577848,2.93,185.87,185.81,2.84]
[1762037581151,2.93,185.87,185.81,7.6855]
[1762037581347,2.93,185.87,185.82,2.84]
[1762037581548,2.93,185.9,185.82,2.84]
[1762037582957,2.93,185.9,185.83,4.845]
[1762037583254,2.93,185.9,185.84,2.84]
[1762037583450,2.93,185.94,185.85,2.84]
[1762037583647,2.93,185.94,185.88,2.84]
[1762037583847,2.93,185.94,185.9,2.84]
[1762037585461,2.93,185.94,185.9,7.6831]
[1762037585653,2.93,185.98,185.91,2.84]
[1762037608773,2.93,185.98,185.92,2.71]
[1762037609970,2.93,185.98,185.94,2.71]
[1762037611481,2.95,186.02,185.95,2.71]
[1762037611675,2.95,186.02,185.97,2.71]
[1762037615792,2.95,186.04,185.97,2.71]
[1762037623894,2.95,186.04,185.99,2.7]
[1762037628300,2.95,186.04,186.0,75.96]
[1762037628690,2.95,186.04,185.95,2.7]
[1762037629096,2.95,186.04,185.96,75.98]
[1762037629995,2.79,185.99,185.89,2.7]
[1762037630300,2.79,185.99,185.93,2.7]
[1762037641601,2.79,185.99,185.93,7.5425]
[1762037641806,2.79,185.99,185.94,2.7]
[1762037642407,2.79,185.99,185.95,2.7]
[1762037649608,2.73,186.04,185.95,2.7]
[1762037650112,2.73,186.04,185.96,2.89]
[1762037651109,2.73,186.04,185.97,2.89]
[1762037653016,2.73,186.04,185.98,2.89]
[1762037657220,2.73,186.09,185.98,2.89]
[1762037663319,2.79,186.08,185.99,2.85]
[1762037668528,1.83147304,186.07,185.99,2.85]
[1762037671627,2.79,186.06,185.99,2.85]
[1762037671823,4.8386,186.09,185.99,2.85]
[1762037672022,2.79,186.08,185.99,2.85]
[1762037673327,2.79,186.08,186.0,4.8405]
[1762037673528,2.79,186.08,186.0,7.6905]
[1762037674327,1.83147304,186.07,186.0,7.6905]
[1762037676027,2.79,186.06,186.01,2.85]
[1762037679034,2.79,186.06,185.97,2.83]
[1762037679229,2.69,186.03,185.97,2.83]
[1762037679434,1.83147304,186.02,185.94,2.83]
[1762037679829,2.69,186.01,185.95,2.83]
[1762037680034,1.83147304,186.04,185.95,2.83]
[1762037680035,4.52147304,186.04,185.95,2.83]
[1762037680233,2.69,186.04,185.95,2.83]
[1762037680937,2.69,186.04,185.96,4.8418]
[1762037681129,2.69,186.04,185.97,2.83]
[1762037684636,1.83147304,186.03,185.96,4.8418]
[1762037686038,2.69,186.02,185.96,7.6718]
[1762037687239,2.69,186.02,185.96,2.83]
[1762037687537,2.69,186.02,185.95,75.98]
[1762037687836,2.69,186.02,185.95,78.81]
[1762037689138,2.69,186.02,185.96,2.83]
[1762037702253,2.69,186.02,185.97,2.83]
[1762037705454,2.69,186.02,185.96,4.8416]
[1762037705756,2.69,186.02,185.95,80.58147304]
[1762037706257,2.69,186.02,185.96,2.83]
[1762037713076,2.69,186.02,185.98,2.79]
[1762037713373,2.67,186.09,186.0,2.79]
[1762037713574,2.67,186.09,186.01,1.83147304]
[1762037715073,2.67,186.06,186.01,1.83147304]
[1762037716677,2.67,186.06,186.01,4.62147304]
[1762037720277,2.67,186.05,186.01,4.62147304]
[1762037725282,2.67,186.05,186.01,2.79]
[1762037732293,2.92,186.06,186.01,2.79]
[1762037732587,4.8387,186.08,186.03,2.86]
[1762037732588,2.92,186.07,186.03,2.86]
[1762037734288,2.92,186.07,186.05,2.86]
[1762037734589,2.92,186.07,186.06,5.16299132]
[1762037737683,2.83,186.09,186.06,8.07299132]
[1762037737882,0.14144595,186.09,186.07,5.16299132]
[1762037738085,0.14144595,186.09,186.08,5.16299132]
[1762037739191,4.8375,186.13,186.08,8.07299132]
[1762037739395,4.8375,186.13,186.09,8.07299132]
[1762037739692,4.8375,186.13,186.09,2.91]
[1762037739892,2.83,186.12,186.1,4.85590099]
[1762037740089,2.83,186.12,186.09,2.91]
[1762037740292,2.83,186.12,186.1,4.85478973]
[1762037740490,2.83,186.12,186.11,4.85376372]
[1762037741601,2.83,186.12,186.09,2.91]
[1762037741802,2.83,186.12,186.1,4.8515452]
[1762037742096,2.83,186.12,186.11,4.8515452]
[1762037749002,2.83,186.12,186.09,2.91]
[1762037749195,2.83,186.12,186.1,4.88058932]
[1762037749389,2.83,186.12,186.09,2.91]
[1762037749590,2.83,186.12,186.1,4.88058932]
[1762037749801,2.83,186.12,186.09,2.91]
[1762037749997,2.83,186.12,186.1,4.88058932]
[1762037750202,2.83,186.12,186.09,2.91]
[1762037750394,2.83,186.12,186.1,4.88029223]
[1762037750692,2.83,186.12,186.09,2.91]
[1762037750989,2.83,186.12,186.1,4.88050519]
[1762037751193,2.83,186.12,186.09,2.91]
[1762037751392,2.83,186.12,186.1,4.88030345]
[1762037751592,2.83,186.12,186.09,2.91]
[1762037751794,2.83,186.12,186.1,4.88030345]
[1762037751996,2.83,186.12,186.11,4.88030345]
[1762037755400,2.83,186.14,186.11,7.79030345]
[1762037755699,2.83,186.14,186.12,4.88030345]
[1762037755899,2.83,186.14,186.13,4.88030345]
[1762037757904,2.83,186.14,186.11,2.91]
[1762037758105,2.83,186.14,186.12,4.94704833]
[1762037758305,2.83,186.14,186.11,2.91]
[1762037758604,2.83,186.14,186.12,4.94692925]
[1762037758807,2.83,186.14,186.13,4.94692925]
[1762037759104,2.83,186.14,186.11,2.91]
[1762037761104,2.83,186.14,186.12,4.90900726]
[1762037761304,2.83,186.14,186.11,2.91]
[1762037761509,2.83,186.14,186.12,7.81869135]
[1762037761700,2.83,186.14,186.12,2.91]
[1762037761899,7.6673,186.14,186.12,2.91]
[1762037762202,7.6673,186.14,186.13,5.22686149]
[1762037762706,2.83,186.19,186.14,2.91]
[1762037762908,2.83,186.19,186.15,5.22686149]
[1762037763201,2.83,186.19,186.16,5.22686149]
[1762037763406,2.83,186.19,186.17,8.13686149]
[1762037763611,2.83,186.19,186.17,2.91]
[1762037763905,2.83,186.19,186.1,4.09064515]
[1762037764105,7.666,186.19,186.12,2.91]
[1762037766503,4.836,186.19,186.12,2.91]
[1762037767302,7.536,186.19,186.12,2.91]
[1762037767797,7.536,186.19,186.13,2.72]
[1762037769004,4.836,186.19,186.14,4.81711181]
[1762037769311,2.7,186.18,186.15,2.72]
[1762037770713,4.836,186.19,186.15,2.72]
[1762037771110,7.536,186.19,186.15,2.72]
[1762037775012,4.836,186.19,186.15,2.72]
[1762037775198,7.536,186.19,186.15,2.72]
[1762037777118,7.536,186.19,186.16,7.76341554]
[1762037777317,7.536,186.19,186.17,5.04341554]
[1762037777508,7.536,186.19,186.18,5.04341554]
[1762037777807,4.836,186.19,186.18,7.76341554]
[1762037778015,7.536,186.19,186.18,5.04341554]
[1762037780215,7.536,186.19,186.15,2.72]
[1762037780416,7.536,186.19,186.16,7.59465218]
[1762037780618,7.536,186.19,186.16,2.72]
[1762037785317,7.536,186.19,186.17,5.42092901]
[1762037785615,7.536,186.19,186.18,5.42092901]
[1762037787713,9.36512343,186.19,186.18,5.42092901]
[1762037790313,2.89,186.15,186.09,2.89]
[1762037790614,2.89,186.15,186.11,2.89]
[1762037791315,2.89,186.15,186.13,2.89]
[1762037792522,2.89,186.13,186.08,2.89]
[1762037792721,1.82912343,186.15,186.1,2.89]
[1762037793019,4.71912343,186.17,186.1,2.89]
[1762037793516,2.89,186.14,186.1,2.89]
[1762037795023,2.89,186.13,186.1,2.89]
[1762037795916,2.89,186.13,186.07,2.89]
[1762037796115,2.89,186.13,186.08,7.13112597]
[1762037796314,2.89,186.13,186.09,4.24112597]
[1762037796515,2.89,186.13,186.08,2.89]
[1762037796815,2.89,186.13,186.09,4.24133639]
[1762037797016,2.88,186.12,186.08,2.89]
[1762037797215,2.88,186.12,186.09,4.24106666]
[1762037797419,2.88,186.12,186.08,2.89]
[1762037797619,2.88,186.12,186.09,4.24155028]
[1762037797818,2.88,186.12,186.08,2.89]
[1762037798021,2.88,186.12,186.09,4.24155028]
[1762037798220,2.88,186.12,186.08,2.89]
[1762037798419,2.88,186.12,186.09,7.0317546]
[1762037798723,2.88,186.12,186.09,2.79]
[1762037799422,4.70912343,186.15,186.1,4.24043736]
[1762037799616,4.70912343,186.15,186.12,2.79]
[1762037801627,2.88,186.14,186.12,2.79]
[1762037802321,2.88,186.14,186.13,5.30230743]
[1762037809728,7.7163,186.17,186.14,2.79]
[1762037809934,4.8363,186.17,186.16,2.79]
[1762037810227,4.8363,186.17,186.16,8.09230743]
[1762037813234,4.8363,186.17,186.16,8.23507141]
[1762037814639,7.7163,186.17,186.16,5.44507141]
[1762037822933,4.8363,186.17,186.16,8.23507141]
[1762037823123,7.7158,186.19,186.16,8.23507141]
[1762037823329,7.7158,186.19,186.17,5.44507141]
[1762037823630,7.7158,186.19,186.18,5.44507141]
[1762037828841,7.575,186.23,186.19,2.76]
[1762037829043,2.74,186.22,186.2,8.14547034]
[1762037829344,2.74,186.26,186.22,2.76]
[1762037829539,2.74,186.26,186.24,2.76]
[1762037829738,2.74,186.26,186.25,5.38547034]
[1762037832549,4.8338,186.27,186.26,2.76]
[1762037832845,4.8338,186.27,186.26,8.14547034]
[1762037833141,4.8338,186.27,186.26,2.76]
[1762037834847,7.5726,186.32,186.27,2.76]
[1762037835049,2.74,186.31,186.28,5.23928439]
[1762037835349,2.74,186.31,186.28,2.76]
[1762037835736,2.74,186.31,186.27,4.58912343]
[1762037835936,7.573,186.3,186.28,5.23256504]
[1762037836144,2.74,186.29,186.27,2.76]
[1762037842658,7.5734,186.29,186.27,2.76]
[1762037842859,2.87,186.28,186.24,2.77]
[1762037843058,2.87,186.28,186.25,7.96485653]
[1762037843257,2.87,186.28,186.26,5.19485653]
[1762037843457,2.87,186.28,186.25,2.77]
[1762037843957,7.7037,186.27,186.25,2.77]
[1762037845858,2.87,186.26,186.21,2.77]
[1762037846056,2.87,186.26,186.19,7.6908713]
[1762037846057,2.87,186.26,186.23,2.77]
[1762037846253,2.87,186.26,186.24,7.96198394]
[1762037846462,2.87,186.26,186.24,2.77]
[1762037848652,7.7037,186.27,186.24,2.77]
[1762037851961,2.87,186.26,186.24,2.77]
[1762037852162,2.87,186.26,186.2,2.77]
[1762037852363,2.87,186.26,186.22,2.77]
[1762037852563,2.87,186.26,186.23,7.88336574]
[1762037852863,2.87,186.26,186.23,2.77]
[1762037854463,2.87,186.26,186.24,7.92350791]
[1762037854664,2.87,186.26,186.24,2.77]
[1762037855858,7.7037,186.27,186.24,2.77]
[1762037856059,7.7037,186.27,186.25,7.92481766]
[1762037856255,7.7037,186.27,186.25,2.77]
[1762037856967,2.94,186.26,186.25,2.77]
[1762037857173,2.94,186.26,186.25,7.92660933]
[1762037857468,2.94,186.26,186.25,5.15660933]
[1762037858068,2.94,186.25,186.22,2.76]
[1762037858270,2.94,186.25,186.23,5.15839825]
[1762037858568,2.94,186.25,186.22,2.76]
[1762037858868,2.94,186.25,186.23,7.84107574]
[1762037859062,4.8342,186.26,186.23,2.76]
[1762037859264,7.7742,186.26,186.23,2.76]
[1762037859665,2.94,186.25,186.23,2.76]
[1762037860373,2.94,186.23,186.19,2.76]
[1762037860575,2.94,186.23,186.21,2.76]
[1762037861073,2.94,186.23,186.22,5.08723519]
[1762037861763,7.7751,186.22,186.19,2.76]
[1762037861958,7.7751,186.22,186.2,5.08795482]
[1762037861959,4.8351,186.22,186.2,5.08795482]
[1762037862163,2.94,186.21,186.19,2.76]
[1762037862366,2.94,186.21,186.2,5.08960175]
[1762037863074,7.7755,186.21,186.2,5.08960175]
[1762037863575,2.94,186.25,186.21,2.76]
[1762037864760,2.94,186.25,186.22,5.3199047]
[1762037864964,2.94,186.25,186.21,2.76]
[1762037864965,7.7748,186.24,186.23,5.3199047]
[1762037868674,7.7751,186.22,186.17,2.76]
[1762037868867,7.7751,186.22,186.19,2.76]
[1762037869072,7.7751,186.22,186.2,5.24812449]
[1762037869272,7.7751,186.22,186.21,5.24812449]
[1762037883288,2.94,186.18,186.16,2.76]
[1762037884678,4.836,186.19,186.16,2.76]
[1762037884880,7.776,186.19,186.16,2.76]
[1762037892087,2.8,186.18,186.16,2.76]
[1762037895092,2.8,186.18,186.17,5.07495609]
[1762037896602,2.8,186.18,186.17,7.94495609]
[1762037897491,2.8,186.18,186.17,5.07495609]
[1762037897794,2.8,186.18,186.13,2.87]
[1762037897795,2.8,186.15,186.11,2.87]
[1762037899004,2.8,186.14,186.11,2.87]
[1762037899694,2.8,186.23,186.13,2.87]
[1762037899893,2.8,186.23,186.15,2.87]
[1762037900092,2.8,186.19,186.15,2.87]
[1762037900398,4.8356,186.2,186.15,2.87]
[1762037900596,2.8,186.22,186.15,2.87]
[1762037900796,2.8,186.22,186.1,47.81678448]
[1762037900797,2.8,186.22,186.17,2.87]
[1762037901992,7.6351,186.22,186.17,2.87]
[1762037902786,4.8355,186.21,186.17,2.87]
[1762037902986,2.84,186.2,186.17,2.87]
[1762037904391,4.8355,186.21,186.17,2.87]
[1762037905395,4.8347,186.24,186.19,2.86]
[1762037905785,2.84,186.24,186.19,2.86]
[1762037907001,7.675,186.23,186.19,2.86]
[1762037907499,9.50382457,186.23,186.19,2.86]
[1762037909802,9.50382457,186.23,186.2,8.01976141]
[1762037910004,9.50382457,186.23,186.21,5.15976141]
[1762037910204,9.50382457,186.23,186.22,5.15976141]
[1762037912499,9.50382457,186.23,186.22,6.141e-05]